[Event "23rd ETCC Women 2021"]
[Site "Catez"]
[Date "2021.11.17"]
[Round "5.2"]
[White "Zimina, Olga"]
[Black "Gunina, Valentina"]
[Result "1-0"]
[ECO "B11"]
[WhiteElo "2339"]
[BlackElo "2480"]
[Annotator "ChessBase"]
[PlyCount "129"]
[EventDate "2021.11.08"]
[EventType "team-tourn"]
[EventCountry "SLO"]
[SourceTitle "playchess.com"]
[Source "ChessBase"]
[SourceQuality "1"]
[WhiteTeam "Italy"]
[BlackTeam "Russia"]
[WhiteTeamCountry "ITA"]
[BlackTeamCountry "RUS"]
[TimeControl "40/5400+30:1800+30"]

1. e4 {[%emt 0:00:05]} c6 {[%emt 0:00:08]} 2. Nc3 {[%emt 0:00:06]} d5 {[%emt 0:
00:15]} 3. Nf3 {[%emt 0:00:05]} dxe4 {[%emt 0:00:24]} 4. Nxe4 {[%emt 0:00:06]}
Nf6 {[%emt 0:00:03]} 5. Qe2 {[%emt 0:00:05]} Nxe4 {[%emt 0:00:08]} 6. Qxe4 {
[%emt 0:00:05]} Nd7 {[%emt 0:00:06]} 7. Bc4 {[%emt 0:00:05]} Nf6 {[%emt 0:00:
08]} 8. Ne5 {[%emt 0:00:05]} e6 {[%emt 0:00:08]} 9. Qe2 {[%emt 0:00:05]} b5 {
[%emt 0:00:19]} 10. Bd3 {[%emt 0:00:05]} Qc7 {[%emt 0:00:32]} 11. b3 {[%emt 0:
00:05]} Bd6 {[%emt 0:00:29]} 12. Bb2 {[%emt 0:00:14]} Nd5 {[%emt 0:00:10]} 13.
O-O {[%emt 0:07:21]} O-O {[%emt 0:14:58]} 14. Qh5 {[%emt 0:19:34]} g6 {[%emt 0:
07:10]} 15. Ng4 {[%emt 0:14:52]} e5 {[%emt 0:00:45]} 16. Qh4 {[%emt 0:00:36]}
Bxg4 {[%emt 0:02:57]} 17. Qxg4 {[%emt 0:01:50]} f5 {[%emt 0:00:52]} 18. Qh4 {
[%emt 0:00:43]} Rae8 {[%emt 0:11:52]} 19. a4 {[%emt 0:08:32]} a6 {[%emt 0:05:
08]} 20. axb5 {[%emt 0:00:24]} axb5 {[%emt 0:00:05]} 21. c4 {[%emt 0:07:36]}
Be7 {[%emt 0:30:52]} 22. Qg3 {[%emt 0:04:20]} Nf4 {[%emt 0:00:10]} 23. cxb5 {
[%emt 0:00:27]} cxb5 {[%emt 0:00:04]} 24. Bxb5 {[%emt 0:09:16]} Rb8 {[%emt 0:
01:02]} 25. Ba6 {[%emt 0:03:53]} Bf6 {[%emt 0:08:08]} 26. Qc3 {[%emt 0:05:12]}
Qd6 {[%emt 0:03:30]} 27. Bc4+ {[%emt 0:01:17]} Kh8 {[%emt 0:00:14]} 28. Ra6 {
[%emt 0:00:17]} Rb6 {[%emt 0:04:00]} 29. Rxb6 {[%emt 0:05:49]} Qxb6 {[%emt 0:
00:04]} 30. Ra1 {[%emt 0:01:23]} Qb7 {[%emt 0:03:34]} 31. Qf3 {[%emt 0:02:47]}
Qb8 {[%emt 0:05:55]} 32. Qc6 {[%emt 0:03:15]} Bg7 {[%emt 0:00:50]} 33. Bc3 {
[%emt 0:01:45]} Rc8 {[%emt 0:00:42]} 34. Qd7 {[%emt 0:00:58]} Rd8 {[%emt 0:00:
37]} 35. Qe7 {[%emt 0:00:22]} Re8 {[%emt 0:00:35]} 36. Qf7 {[%emt 0:00:34]} Rf8
{[%emt 0:00:35]} 37. Qa7 {[%emt 0:00:09]} Qd8 {[%emt 0:00:48]} 38. Qb7 {
[%emt 0:01:04]} h5 {[%emt 0:00:39]} 39. Ra7 {[%emt 0:02:16]} Qf6 {[%emt 0:00:
13]} 40. Qxg7+ {[%emt 0:00:44]} Qxg7 {[%emt 0:00:02]} 41. Rxg7 {[%emt 0:30:07]}
Kxg7 {[%emt 0:01:52]} 42. Bxe5+ {[%emt 0:00:00]} Kh6 {[%emt 0:00:09]} 43. Bxf4+
{[%emt 0:00:00]} g5 {[%emt 0:00:04]} 44. Be5 {[%emt 0:00:00]} Rd8 {[%emt 0:01:
48]} 45. h4 {[%emt 0:00:00]} Rxd2 {[%emt 0:01:48]} 46. hxg5+ {[%emt 0:00:00]}
Kxg5 {[%emt 0:00:11]} 47. g3 {[%emt 0:00:00]} Kg4 {[%emt 0:01:08]} 48. Kg2 {
[%emt 0:00:00]} h4 {[%emt 0:03:05]} 49. gxh4 {[%emt 0:00:00]} Rc2 {[%emt 0:03:
10]} 50. Bf6 {[%emt 0:00:00]} Rd2 {[%emt 0:01:46]} 51. Bg5 {[%emt 0:00:00]} Rc2
{[%emt 0:01:27]} 52. Bd5 {[%emt 0:00:00]} Kh5 {[%emt 0:04:13]} 53. Bf7+ {
[%emt 0:00:00]} Kg4 {[%emt 0:00:07]} 54. b4 {[%emt 0:00:00]} Rb2 {[%emt 0:01:
26]} 55. b5 {[%emt 0:00:00]} f4 {[%emt 0:02:10]} 56. Be6+ {[%emt 0:00:00]} Kh5
{[%emt 0:00:03]} 57. Bd7 {[%emt 0:00:00]} Rd2 {[%emt 0:00:33]} 58. Bc6 {
[%emt 0:00:00]} Rb2 {[%emt 0:02:07]} 59. Kf3 {[%emt 0:00:00]} Kg6 {[%emt 0:00:
21]} 60. Bxf4 {[%emt 0:00:00]} Kh5 {[%emt 0:00:23]} 61. Be3 {[%emt 0:00:00]}
Rc2 {[%emt 0:01:23]} 62. Be4 {[%emt 0:00:00]} Rb2 {[%emt 0:00:35]} 63. b6 {
[%emt 0:00:00]} Rb3 {[%emt 0:00:19]} 64. b7 {[%emt 0:00:00]} Kxh4 {[%emt 0:00:
21]} 65. Kg2 {[%emt 0:00:00]} 1-0

[Event "23rd ETCC Women 2021"]
[Site "Catez"]
[Date "2021.11.16"]
[Round "5.4"]
[White "Gueci, Tea"]
[Black "Kashlinskaya, Alina"]
[Result "1/2-1/2"]
[ECO "C07"]
[WhiteElo "2242"]
[BlackElo "2482"]
[Annotator "ChessBase"]
[PlyCount "81"]
[EventDate "2021.11.08"]
[EventType "team-tourn"]
[EventCountry "SLO"]
[SourceTitle "playchess.com"]
[Source "ChessBase"]
[SourceQuality "1"]
[WhiteTeam "Italy"]
[BlackTeam "Russia"]
[WhiteTeamCountry "ITA"]
[BlackTeamCountry "RUS"]
[TimeControl "40/5400+30:1800+30"]

1. e4 {[%emt 0:00:03]} e6 {[%emt 0:00:05]} 2. d4 {[%emt 0:00:03]} d5 {[%emt 0:
00:07]} 3. Nd2 {[%emt 0:00:03]} c5 {[%emt 0:00:11]} 4. Ngf3 {[%emt 0:00:05]}
cxd4 {[%emt 0:00:12]} 5. Nxd4 {[%emt 0:00:10]} Nc6 {[%emt 0:00:12]} 6. Bb5 {
[%emt 0:00:34]} Bd7 {[%emt 0:00:12]} 7. Nxc6 {[%emt 0:00:11]} bxc6 {[%emt 0:00:
07]} 8. Bd3 {[%emt 0:00:06]} Qc7 {[%emt 0:00:23]} 9. Qe2 {[%emt 0:00:44]} Bd6 {
[%emt 0:00:28]} 10. Nf3 {[%emt 0:00:48]} dxe4 {[%emt 0:00:30]} 11. Bxe4 {
[%emt 0:01:35]} Nf6 {[%emt 0:10:15]} 12. O-O {[%emt 0:11:48]} O-O {[%emt 0:04:
25]} 13. b3 {[%emt 0:07:51]} Nxe4 {[%emt 0:16:02]} 14. Qxe4 {[%emt 0:00:14]} c5
{[%emt 0:00:47]} 15. h3 {[%emt 0:16:55]} Bc6 {[%emt 0:00:35]} 16. Qe2 {[%emt 0:
03:09]} e5 {[%emt 0:16:18]} 17. Ng5 {[%emt 0:11:19]} Rae8 {[%emt 0:04:15]} 18.
Ne4 {[%emt 0:01:43]} Be7 {[%emt 0:04:56]} 19. Ba3 {[%emt 0:10:25]} Kh8 {
[%emt 0:07:19]} 20. f3 {[%emt 0:17:27]} f5 {[%emt 0:03:26]} 21. Nf2 {[%emt 0:
00:32]} e4 {[%emt 0:08:36]} 22. fxe4 {[%emt 0:00:18]} fxe4 {[%emt 0:01:22]} 23.
Ng4 {[%emt 0:03:35]} Qg3 {[%emt 0:03:03]} 24. Bb2 {[%emt 0:05:24]} Bd6 {
[%emt 0:05:44]} 25. Rxf8+ {[%emt 0:01:20]} Rxf8 {[%emt 0:00:11]} 26. Rf1 {
[%emt 0:00:11]} Rxf1+ {[%emt 0:07:36]} 27. Qxf1 {[%emt 0:00:05]} Qf4 {[%emt 0:
01:10]} 28. Qxf4 {[%emt 0:01:55]} Bxf4 {[%emt 0:00:01]} 29. Be5 {[%emt 0:01:16]
} Bc1 {[%emt 0:02:21]} 30. Kf2 {[%emt 0:00:41]} Kg8 {[%emt 0:00:40]} 31. Bd6 {
[%emt 0:00:55]} c4 {[%emt 0:01:08]} 32. bxc4 {[%emt 0:00:20]} h5 {[%emt 0:00:
26]} 33. Ne3 {[%emt 0:00:32]} Kf7 {[%emt 0:00:35]} 34. Bc5 {[%emt 0:00:31]}
Bxe3+ {[%emt 0:01:56]} 35. Kxe3 {[%emt 0:00:31]} a6 {[%emt 0:00:03]} 36. h4 {
[%emt 0:00:53]} Ke6 {[%emt 0:00:12]} 37. g3 {[%emt 0:00:59]} g6 {[%emt 0:01:36]
} 38. c3 {[%emt 0:01:00]} a5 {[%emt 0:00:51]} 39. Bf8 {[%emt 0:01:15]} a4 {
[%emt 0:00:21]} 40. Kd4 {[%emt 0:01:17]} Kd7 {[%emt 0:01:08]} 41. Bc5 {[%emt 0:
31:26]} 1/2-1/2

[Event "23rd ETCC Women 2021"]
[Site "Catez"]
[Date "2021.11.16"]
[Round "5.5"]
[White "Danielian, Elina"]
[Black "Dzagnidze, Nana"]
[Result "0-1"]
[ECO "E62"]
[WhiteElo "2450"]
[BlackElo "2524"]
[Annotator "ChessBase"]
[PlyCount "84"]
[EventDate "2021.11.08"]
[EventType "team-tourn"]
[EventCountry "SLO"]
[SourceTitle "playchess.com"]
[Source "ChessBase"]
[SourceQuality "1"]
[WhiteTeam "Armenia"]
[BlackTeam "Georgia"]
[WhiteTeamCountry "ARM"]
[BlackTeamCountry "GEO"]
[TimeControl "40/5400+30:1800+30"]

1. Nf3 {[%emt 0:00:03]} Nf6 {[%emt 0:00:09]} 2. g3 {[%emt 0:02:30]} g6 {
[%emt 0:00:29]} 3. Bg2 {[%emt 0:00:37]} Bg7 {[%emt 0:00:17]} 4. c4 {[%emt 0:00:
24]} O-O {[%emt 0:00:19]} 5. O-O {[%emt 0:00:20]} d6 {[%emt 0:03:42]} 6. d4 {
[%emt 0:00:40]} Nc6 {[%emt 0:00:10]} 7. Nc3 {[%emt 0:00:13]} e5 {[%emt 0:00:32]
} 8. d5 {[%emt 0:09:49]} Nb8 {[%emt 0:00:32]} 9. e4 {[%emt 0:00:05]} a5 {
[%emt 0:00:39]} 10. b3 {[%emt 0:08:17]} Na6 {[%emt 0:04:41]} 11. Rb1 {[%emt 0:
00:24]} c6 {[%emt 0:07:34]} 12. dxc6 {[%emt 0:21:08]} bxc6 {[%emt 0:00:19]} 13.
Ba3 {[%emt 0:00:03]} Nb4 {[%emt 0:06:29]} 14. Qd2 {[%emt 0:00:29]} Qe7 {
[%emt 0:06:42]} 15. Rbd1 {[%emt 0:05:15]} Rd8 {[%emt 0:00:55]} 16. h3 {[%emt 0:
00:21]} Ne8 {[%emt 0:16:00]} 17. Na4 {[%emt 0:13:26]} Rb8 {[%emt 0:01:10]} 18.
Bb2 {[%emt 0:02:32]} Nc7 {[%emt 0:18:05]} 19. Rfe1 {[%emt 0:05:25]} Be6 {
[%emt 0:04:15]} 20. a3 {[%emt 0:04:07]} Nba6 {[%emt 0:00:35]} 21. Qc2 {[%emt 0:
02:17]} f6 {[%emt 0:00:44]} 22. Bc3 {[%emt 0:07:52]} d5 {[%emt 0:00:04]} 23.
Bxa5 {[%emt 0:01:42]} dxc4 {[%emt 0:01:53]} 24. b4 {[%emt 0:00:32]} Rxd1 {
[%emt 0:04:57]} 25. Rxd1 {[%emt 0:00:03]} Nb5 {[%emt 0:02:03]} 26. Bf1 {
[%emt 0:03:36]} Bf8 {[%emt 0:06:28]} 27. Qc1 {[%emt 0:01:43]} Qf7 {[%emt 0:01:
13]} 28. Nb6 {[%emt 0:05:17]} c5 {[%emt 0:00:24]} 29. Nd5 {[%emt 0:03:38]} cxb4
{[%emt 0:03:12]} 30. Qxc4 {[%emt 0:00:39]} bxa3 {[%emt 0:00:53]} 31. Qc6 {
[%emt 0:00:35]} Nc5 {[%emt 0:09:26]} 32. Bxb5 {[%emt 0:00:50]} Nb3 {[%emt 0:00:
02]} 33. Bc3 {[%emt 0:01:06]} Rc8 {[%emt 0:00:07]} 34. Qa6 {[%emt 0:00:26]} Nc5
{[%emt 0:00:07]} 35. Qa5 {[%emt 0:00:38]} Nxe4 {[%emt 0:00:06]} 36. Ba6 {
[%emt 0:00:25]} Rc5 {[%emt 0:00:11]} 37. Qd8 {[%emt 0:00:42]} Rxd5 {[%emt 0:00:
27]} 38. Rxd5 {[%emt 0:00:18]} Bxd5 {[%emt 0:00:01]} 39. Ba1 {[%emt 0:00:30]}
Nxg3 {[%emt 0:01:46]} 40. Bxe5 {[%emt 0:00:58]} fxe5 {[%emt 0:01:03]} 41. Nxe5
{[%emt 0:30:06]} a2 {[%emt 0:31:10]} 42. Qa5 {[%emt 0:00:00]} Qe6 {[%emt 0:00:
00]} 0-1

[Event "23rd ETCC Women 2021"]
[Site "Catez"]
[Date "2021.11.16"]
[Round "5.6"]
[White "Arabidze, Meri"]
[Black "Mkrtchian, Lilit"]
[Result "0-1"]
[ECO "E11"]
[WhiteElo "2441"]
[BlackElo "2379"]
[Annotator "ChessBase"]
[PlyCount "129"]
[EventDate "2021.11.08"]
[EventType "team-tourn"]
[EventCountry "SLO"]
[SourceTitle "playchess.com"]
[Source "ChessBase"]
[SourceQuality "1"]
[WhiteTeam "Georgia"]
[BlackTeam "Armenia"]
[WhiteTeamCountry "GEO"]
[BlackTeamCountry "ARM"]
[TimeControl "40/5400+30:1800+30"]

1. d4 {[%emt 0:00:03]} Nf6 {[%emt 0:00:19]} 2. c4 {[%emt 0:00:10]} e6 {[%emt 0:
00:05]} 3. Nf3 {[%emt 0:00:15]} d5 {[%emt 0:00:25]} 4. g3 {[%emt 0:00:15]} Bb4+
{[%emt 0:00:48]} 5. Bd2 {[%emt 0:00:07]} Be7 {[%emt 0:00:05]} 6. Bg2 {[%emt 0:
00:07]} Nbd7 {[%emt 0:00:50]} 7. Qc2 {[%emt 0:00:53]} c6 {[%emt 0:00:16]} 8.
O-O {[%emt 0:00:26]} O-O {[%emt 0:00:08]} 9. Rd1 {[%emt 0:03:02]} b6 {[%emt 0:
00:17]} 10. b3 {[%emt 0:00:30]} a5 {[%emt 0:03:29]} 11. Bc3 {[%emt 0:09:25]}
Ne4 {[%emt 0:15:05]} 12. Bb2 {[%emt 0:01:57]} Bb7 {[%emt 0:00:10]} 13. Nc3 {
[%emt 0:01:46]} f5 {[%emt 0:00:38]} 14. e3 {[%emt 0:01:33]} Qe8 {[%emt 0:07:55]
} 15. Ne2 {[%emt 0:03:46]} g5 {[%emt 0:00:44]} 16. Ne5 {[%emt 0:03:35]} Nxe5 {
[%emt 0:18:03]} 17. dxe5 {[%emt 0:00:32]} Rc8 {[%emt 0:12:39]} 18. Bd4 {
[%emt 0:05:54]} b5 {[%emt 0:08:47]} 19. Bb2 {[%emt 0:08:29]} Rf7 {[%emt 0:05:
36]} 20. Rac1 {[%emt 0:09:18]} Bf8 {[%emt 0:00:44]} 21. Nd4 {[%emt 0:11:41]} b4
{[%emt 0:06:23]} 22. f3 {[%emt 0:11:20]} Nc5 {[%emt 0:00:15]} 23. Bf1 {[%emt 0:
00:20]} g4 {[%emt 0:05:54]} 24. cxd5 {[%emt 0:05:38]} cxd5 {[%emt 0:00:18]} 25.
Bb5 {[%emt 0:00:45]} Qd8 {[%emt 0:00:34]} 26. fxg4 {[%emt 0:06:59]} fxg4 {
[%emt 0:00:32]} 27. Qe2 {[%emt 0:00:24]} Qg5 {[%emt 0:00:44]} 28. Rf1 {[%emt 0:
03:09]} Rxf1+ {[%emt 0:02:05]} 29. Rxf1 {[%emt 0:00:00]} Bg7 {[%emt 0:00:42]}
30. Bc1 {[%emt 0:10:14]} Bxe5 {[%emt 0:03:39]} 31. Qf2 {[%emt 0:00:07]} Qg7 {
[%emt 0:00:13]} 32. Bb2 {[%emt 0:00:39]} Ne4 {[%emt 0:05:45]} 33. Qe2 {[%emt 0:
00:01]} Bxd4 {[%emt 0:01:01]} 34. exd4 {[%emt 0:01:51]} h5 {[%emt 0:00:19]} 35.
Bd3 {[%emt 0:00:38]} Ng5 {[%emt 0:00:11]} 36. Kg2 {[%emt 0:00:49]} e5 {[%emt 0:
02:00]} 37. Qxe5 {[%emt 0:00:34]} Qxe5 {[%emt 0:00:10]} 38. dxe5 {[%emt 0:00:
01]} d4+ {[%emt 0:00:05]} 39. Kf2 {[%emt 0:00:08]} Nf3 {[%emt 0:00:28]} 40.
Bc4+ {[%emt 0:01:11]} Kf8 {[%emt 0:01:29]} 41. Rd1 {[%emt 0:03:44]} Ba6 {
[%emt 0:06:50]} 42. Bxd4 {[%emt 0:08:27]} Bxc4 {[%emt 0:00:21]} 43. bxc4 {
[%emt 0:00:07]} Rxc4 {[%emt 0:00:08]} 44. Bb6 {[%emt 0:00:11]} Rc2+ {[%emt 0:
07:02]} 45. Ke3 {[%emt 0:00:01]} Nxe5 {[%emt 0:00:21]} 46. Ke4 {[%emt 0:02:20]}
Re2+ {[%emt 0:01:46]} 47. Kd5 {[%emt 0:06:01]} Nf3 {[%emt 0:04:11]} 48. Ra1 {
[%emt 0:02:25]} Kf7 {[%emt 0:02:32]} 49. Kc4 {[%emt 0:00:11]} Re5 {[%emt 0:10:
56]} 50. Bc7 {[%emt 0:05:04]} Rf5 {[%emt 0:00:14]} 51. Kb3 {[%emt 0:02:25]}
Nxh2 {[%emt 0:00:41]} 52. Ka4 {[%emt 0:00:40]} Nf1 {[%emt 0:00:25]} 53. Bxa5 {
[%emt 0:05:02]} Nxg3 {[%emt 0:00:03]} 54. Kxb4 {[%emt 0:00:06]} Ne4 {[%emt 0:
01:09]} 55. a4 {[%emt 0:00:40]} g3 {[%emt 0:00:23]} 56. Bb6 {[%emt 0:00:10]}
Nd6 {[%emt 0:00:50]} 57. a5 {[%emt 0:02:05]} h4 {[%emt 0:00:26]} 58. a6 {
[%emt 0:00:30]} Rb5+ {[%emt 0:00:44]} 59. Kc3 {[%emt 0:00:01]} Rxb6 {[%emt 0:
00:11]} 60. a7 {[%emt 0:00:41]} Nb5+ {[%emt 0:00:34]} 61. Kd3 {[%emt 0:00:10]}
Nxa7 {[%emt 0:00:05]} 62. Rxa7+ {[%emt 0:00:03]} Kg6 {[%emt 0:00:10]} 63. Ke4 {
[%emt 0:01:11]} g2 {[%emt 0:01:14]} 64. Ra1 {[%emt 0:00:40]} Rf6 {[%emt 0:00:
11]} 65. Kd4 {[%emt 0:01:03]} 0-1

[Event "23rd ETCC Women 2021"]
[Site "Catez"]
[Date "2021.11.16"]
[Round "5.7"]
[White "Sargsyan, Anna M."]
[Black "Melia, Salome"]
[Result "0-1"]
[ECO "B31"]
[WhiteElo "2385"]
[BlackElo "2371"]
[Annotator "NA"]
[PlyCount "78"]
[EventDate "2021.11.08"]
[EventType "team-tourn"]
[EventCountry "SLO"]
[SourceTitle "playchess.com"]
[Source "ChessBase"]
[SourceQuality "1"]
[WhiteTeam "Armenia"]
[BlackTeam "Georgia"]
[WhiteTeamCountry "ARM"]
[BlackTeamCountry "GEO"]
[TimeControl "40/5400+30:1800+30"]

1. e4 {[%emt 0:00:12]} c5 {[%emt 0:01:39]} 2. Nf3 {[%emt 0:00:10]} Nc6 {
[%emt 0:00:11]} 3. Bb5 {[%emt 0:00:05]} g6 {[%emt 0:01:54]} 4. Bxc6 {[%emt 0:
00:07]} dxc6 {[%emt 0:00:19]} 5. d3 {[%emt 0:00:04]} Bg7 {[%emt 0:00:05]} 6. h3
{[%emt 0:00:03]} Qc7 {[%emt 0:01:45]} 7. a4 {[%emt 0:00:08]} a5 {[%emt 0:01:06]
} 8. O-O {[%emt 0:02:37]} h6 {[%emt 0:10:55]} 9. Nc3 {[%emt 0:03:22]} e5 {
[%emt 0:00:45]} 10. Be3 {[%emt 0:00:07]} b6 {[%emt 0:00:05]} 11. Qd2 {[%emt 0:
00:13]} Ne7 {[%emt 0:00:27]} 12. Nh2 {[%emt 0:00:15]} Be6 {[%emt 0:02:09]} 13.
f4 {[%emt 0:00:28]} exf4 {[%emt 0:05:45]} 14. Bxf4 {[%emt 0:00:07]} Qd7 {
[%emt 0:00:12]} 15. Nf3 {[%emt 0:04:55]} g5 {[%emt 0:01:07]} 16. Bh2 {[%emt 0:
01:23]} Ng6 {[%emt 0:01:18]} 17. Rae1 {[%emt 0:04:55]} O-O {[%emt 0:03:57]} 18.
e5 {[%emt 0:01:07]} Bd5 {[%emt 0:01:48]} 19. Ne4 {[%emt 0:03:57]} Bxe4 {
[%emt 0:01:03]} 20. Rxe4 {[%emt 0:00:03]} Rae8 {[%emt 0:01:12]} 21. Qe3 {
[%emt 0:09:37]} Re6 {[%emt 0:21:54]} 22. d4 {[%emt 0:03:48]} Qd5 {[%emt 0:06:
53]} 23. c4 {[%emt 0:13:44]} Qxc4 {[%emt 0:02:51]} 24. dxc5 {[%emt 0:01:43]}
Qxc5 {[%emt 0:01:19]} 25. Nd4 {[%emt 0:00:06]} Ree8 {[%emt 0:00:53]} 26. Rc1 {
[%emt 0:01:06]} Qd5 {[%emt 0:02:20]} 27. Nxc6 {[%emt 0:01:12]} f5 {[%emt 0:05:
48]} 28. Rd4 {[%emt 0:01:03]} Qf7 {[%emt 0:06:26]} 29. Qd3 {[%emt 0:04:41]} f4
{[%emt 0:03:39]} 30. Nd8 {[%emt 0:05:14]} Qf5 {[%emt 0:11:09]} 31. Qb3+ {
[%emt 0:02:52]} Kh8 {[%emt 0:00:35]} 32. Qxb6 {[%emt 0:00:53]} Qxe5 {[%emt 0:
02:55]} 33. Rcd1 {[%emt 0:05:36]} Qe3+ {[%emt 0:00:55]} 34. Kh1 {[%emt 0:00:02]
} Rxd8 {[%emt 0:01:32]} 35. Qxd8 {[%emt 0:00:49]} Rxd8 {[%emt 0:00:17]} 36.
Rxd8+ {[%emt 0:00:03]} Kh7 {[%emt 0:00:13]} 37. Bg1 {[%emt 0:00:03]} Qe4 {
[%emt 0:00:29]} 38. Rf1 {[%emt 0:01:42]} Nh4 {[%emt 0:00:19]} 39. Rd2 {[%emt 0:
00:06]} f3 {[%emt 0:00:43]} 0-1

[Event "23rd ETCC Women 2021"]
[Site "Catez"]
[Date "2021.11.16"]
[Round "5.8"]
[White "Gvetadze, Sofio"]
[Black "Ghukasyan, Siranush"]
[Result "1/2-1/2"]
[ECO "C77"]
[WhiteElo "2302"]
[BlackElo "2168"]
[Annotator "NA"]
[PlyCount "67"]
[EventDate "2021.11.08"]
[EventType "team-tourn"]
[EventCountry "SLO"]
[SourceTitle "playchess.com"]
[Source "ChessBase"]
[SourceQuality "1"]
[WhiteTeam "Georgia"]
[BlackTeam "Armenia"]
[WhiteTeamCountry "GEO"]
[BlackTeamCountry "ARM"]
[TimeControl "40/5400+30:1800+30"]

1. e4 {[%emt 0:00:04]} e5 {[%emt 0:00:04]} 2. Nf3 {[%emt 0:00:07]} Nc6 {
[%emt 0:00:03]} 3. Bb5 {[%emt 0:00:12]} a6 {[%emt 0:00:04]} 4. Ba4 {[%emt 0:00:
07]} Nf6 {[%emt 0:00:05]} 5. d3 {[%emt 0:00:09]} d6 {[%emt 0:00:01]} 6. c3 {
[%emt 0:00:14]} g6 {[%emt 0:00:01]} 7. O-O {[%emt 0:00:15]} Bg7 {[%emt 0:00:06]
} 8. Re1 {[%emt 0:00:19]} O-O {[%emt 0:00:04]} 9. h3 {[%emt 0:00:15]} b5 {
[%emt 0:01:55]} 10. Bc2 {[%emt 0:00:19]} Bb7 {[%emt 0:00:34]} 11. a4 {[%emt 0:
00:44]} Nd7 {[%emt 0:01:48]} 12. b4 {[%emt 0:04:48]} Re8 {[%emt 0:00:30]} 13.
axb5 {[%emt 0:04:27]} axb5 {[%emt 0:00:05]} 14. Na3 {[%emt 0:00:49]} Na7 {
[%emt 0:03:26]} 15. Rb1 {[%emt 0:06:40]} c6 {[%emt 0:03:24]} 16. Bb3 {[%emt 0:
13:20]} d5 {[%emt 0:03:37]} 17. Be3 {[%emt 0:14:02]} Nc8 {[%emt 0:00:05]} 18.
Qc1 {[%emt 0:02:52]} Nd6 {[%emt 0:02:21]} 19. exd5 {[%emt 0:08:33]} cxd5 {
[%emt 0:00:12]} 20. Bc5 {[%emt 0:00:19]} Nxc5 {[%emt 0:02:36]} 21. bxc5 {
[%emt 0:03:29]} e4 {[%emt 0:01:31]} 22. dxe4 {[%emt 0:20:16]} Nxe4 {[%emt 0:01:
30]} 23. Nxb5 {[%emt 0:00:19]} Qd7 {[%emt 0:04:06]} 24. Bc2 {[%emt 0:05:40]}
Nxc5 {[%emt 0:00:28]} 25. Rxe8+ {[%emt 0:00:32]} Rxe8 {[%emt 0:00:06]} 26. Qf4
{[%emt 0:01:31]} Bc6 {[%emt 0:02:54]} 27. Nbd4 {[%emt 0:06:00]} Ba4 {[%emt 0:
02:36]} 28. Bxa4 {[%emt 0:04:33]} Nxa4 {[%emt 0:00:27]} 29. Rb3 {[%emt 0:01:07]
} Nc5 {[%emt 0:00:37]} 30. Rb8 {[%emt 0:00:20]} Ne6 {[%emt 0:03:39]} 31. Qg3 {
[%emt 0:00:37]} Nxd4 {[%emt 0:02:21]} 32. cxd4 {[%emt 0:00:13]} h6 {[%emt 0:01:
11]} 33. h4 {[%emt 0:01:58]} Kh7 {[%emt 0:02:57]} 34. Rxe8 {[%emt 0:00:39]}
1/2-1/2

[Event "23rd ETCC Women 2021"]
[Site "Catez"]
[Date "2021.11.16"]
[Round "5.9"]
[White "Mammadzada, Gunay"]
[Black "Ushenina, Anna"]
[Result "1-0"]
[ECO "C78"]
[WhiteElo "2459"]
[BlackElo "2426"]
[Annotator "ChessBase"]
[PlyCount "81"]
[EventDate "2021.11.08"]
[EventType "team-tourn"]
[EventCountry "SLO"]
[SourceTitle "playchess.com"]
[Source "ChessBase"]
[SourceQuality "1"]
[WhiteTeam "Azerbaijan"]
[BlackTeam "Ukraine"]
[WhiteTeamCountry "AZE"]
[BlackTeamCountry "UKR"]
[TimeControl "40/5400+30:1800+30"]

1. e4 {[%emt 0:00:09]} e5 {[%emt 0:00:36]} 2. Nf3 {[%emt 0:00:05]} Nc6 {
[%emt 0:00:13]} 3. Bb5 {[%emt 0:00:05]} a6 {[%emt 0:00:08]} 4. Ba4 {[%emt 0:00:
06]} Nf6 {[%emt 0:00:28]} 5. O-O {[%emt 0:00:07]} Bc5 {[%emt 0:00:34]} 6. c3 {
[%emt 0:00:25]} O-O {[%emt 0:00:17]} 7. d4 {[%emt 0:00:26]} Ba7 {[%emt 0:00:28]
} 8. Re1 {[%emt 0:01:22]} b5 {[%emt 0:02:06]} 9. Bc2 {[%emt 0:06:05]} d6 {
[%emt 0:00:27]} 10. h3 {[%emt 0:02:58]} exd4 {[%emt 0:06:35]} 11. cxd4 {
[%emt 0:04:15]} Nb4 {[%emt 0:00:35]} 12. Bg5 {[%emt 0:12:18]} h6 {[%emt 0:11:
04]} 13. Bh4 {[%emt 0:09:13]} g5 {[%emt 0:32:00]} 14. Bg3 {[%emt 0:15:32]} Nh5
{[%emt 0:11:10]} 15. Bh2 {[%emt 0:10:19]} g4 {[%emt 0:17:36]} 16. hxg4 {
[%emt 0:01:54]} Bxg4 {[%emt 0:00:01]} 17. Bb3 {[%emt 0:08:18]} Nc6 {[%emt 0:00:
06]} 18. Qd3 {[%emt 0:02:54]} Bxf3 {[%emt 0:08:46]} 19. Qxf3 {[%emt 0:00:30]}
Ng7 {[%emt 0:01:42]} 20. Qf4 {[%emt 0:08:25]} Nxd4 {[%emt 0:01:22]} 21. Qxh6 {
[%emt 0:00:32]} Nxb3 {[%emt 0:01:25]} 22. axb3 {[%emt 0:00:31]} f5 {[%emt 0:01:
35]} 23. e5 {[%emt 0:04:05]} f4 {[%emt 0:01:13]} 24. Nc3 {[%emt 0:03:27]} dxe5
{[%emt 0:00:36]} 25. Ne4 {[%emt 0:00:32]} Qe7 {[%emt 0:01:21]} 26. Rxa6 {
[%emt 0:01:43]} Bb6 {[%emt 0:00:01]} 27. Ng5 {[%emt 0:02:42]} Qxg5 {[%emt 0:00:
50]} 28. Qxg5 {[%emt 0:00:03]} Rxa6 {[%emt 0:00:04]} 29. Qxe5 {[%emt 0:00:14]}
f3 {[%emt 0:00:20]} 30. Bg3 {[%emt 0:01:18]} Rf5 {[%emt 0:00:27]} 31. Qc3 {
[%emt 0:01:34]} Rf7 {[%emt 0:01:16]} 32. gxf3 {[%emt 0:00:54]} Ra8 {[%emt 0:00:
06]} 33. Re4 {[%emt 0:00:16]} Rd8 {[%emt 0:00:49]} 34. Rg4 {[%emt 0:00:31]} Kf8
{[%emt 0:00:33]} 35. Qb4+ {[%emt 0:00:11]} Kg8 {[%emt 0:00:19]} 36. Be5 {
[%emt 0:00:25]} Rd5 {[%emt 0:00:23]} 37. Qe4 {[%emt 0:02:50]} Rd1+ {[%emt 0:00:
41]} 38. Kg2 {[%emt 0:00:19]} Rd2 {[%emt 0:00:31]} 39. Qa8+ {[%emt 0:00:13]}
Kh7 {[%emt 0:00:05]} 40. Rh4+ {[%emt 0:00:04]} Kg6 {[%emt 0:00:17]} 41. Qc6+ {
[%emt 0:30:09]} 1-0